Cogmind - Beta 12 @@@ ROGUE MODE // 2023.11.19 @ 11:17:28 Player: epb Result: Destroyed by Y-45 Defender with Heavy Assault Rifle Performance ------------- Evolutions (1) 500 Regions Visited (2) 400 Robots Destroyed (23) 115 Value Destroyed (553) 553 Prototype IDs (2) 40 Alien Tech Used (0) 0 Bonus (16) 16 TOTAL SCORE: 1624 Bonus ------- High Alert Combat Kills 16 Cogmind --------- Core Integrity 0/400 Matter 67/300 Energy 95/100 System Corruption 0% Temperature Cool (0) Movement Core (200) Ox3 Location -9/Materials Parts ------- > --- POWER (1) -------- (None) > --- PROPULSION (4) --- (None) > --- UTILITY (2) ------ Small Storage Unit > --- WEAPON (2) ------- Improved EM Shotgun Improved EM Shotgun > --- INVENTORY (8) ---- Ion Engine Light Ion Engine Heavy Ion Engine Medium Storage Unit Peak State ------------ > --- POWER ------------ Light Nuclear Core > --- PROPULSION ------- Aluminum Leg Aluminum Leg Aluminum Leg Aluminum Leg > --- UTILITY ---------- Heat Sink Medium Storage Unit > --- WEAPON ----------- Assault Rifle Assault Rifle > --- INVENTORY -------- Ion Engine Light Ion Engine Small Storage Unit Assault Rifle [Rating: 11] Favorites ----------- Power Light Nuclear Core Engine Ion Engine Power Core Light Nuclear Core Propulsion Aluminum Leg Leg Aluminum Leg Flight Unit Flight Unit Utility Medium Storage Unit Device Heat Sink Storage Medium Storage Unit Weapon Assault Rifle Energy Gun EM Shotgun Ballistic Gun Assault Rifle Build | -11 -10 -9 ------- Run | Jun Mat Mat Slots Evolved 2 | . . 2 Power . | . . . Propulsion 2 | . . 2 Utility . | . . . Weapon . | . . . Parts Attached 25 | 6 3 16 Power 7 | 1 1 5 Engine 4 | 1 . 3 Core 3 | . 1 2 Reactor . | . . . Propulsion 6 | 2 . 4 Treads . | . . . Leg 5 | 2 . 3 Wheel . | . . . Hover . | . . . Flight 1 | . . 1 Utility 4 | 1 2 1 Device 1 | . 1 . Storage 3 | 1 1 1 Processor . | . . . Hackware . | . . . Protection . | . . . Artifact . | . . . Weapon 8 | 2 . 6 Energy Gun 5 | . . 5 Energy Cannon . | . . . Ballistic Gun 3 | 2 . 1 Ballistic Cannon . | . . . Launcher . | . . . Special Weapon . | . . . Impact Weapon . | . . . Slashing Weapon . | . . . Piercing Weapon . | . . . Special Melee Weapon . | . . . Unidentified Prototypes 2 | . . 2 Parts Lost 12 | . . 12 Power 1 | . . 1 Propulsion 5 | . . 5 Utility 1 | . . 1 Weapon 5 | . . 5 Highest Loss Streak 9 | . . 9 To Critical Strikes . | . . . Average Slot Usage (%) 80 | . 89 66 Engine 5 | . 8 . Core 5 | . 5 6 Leg 27 | . 28 26 Device 5 | . 4 6 Storage 12 | . 14 8 Energy Gun 1 | . . 3 Ballistic Gun 22 | . 28 12 Naked Turns 38 | . . 38 Heaviest Build 23 | 14 20 23 Greatest Support 40 | 20 20 40 Greatest Overweight (x) 4 | . . 4 Average Overweight (x) . | . . . Largest Inventory Capacity 10 | 8 10 10 Average Capacity 9 | 7 9 8 Most Carried 6 | 2 6 6 Average Carried 4 | 1 4 5 Final Capacity 10 | 8 10 8 Final Carried 6 | 2 6 4 Class Distribution -------------------- 79% | Mutant 20% | Scavenger-Mutant Dominant Class ---------------- Mutant | -10/Materials Scavenger-Mutant | -9/Materials Resources | -11 -10 -9 ----------- Run | Jun Mat Mat Matter Collected 481 | 138 201 142 Remotely . | . . . Salvage Created 634 | . 211 423 Parts 46 | . 21 25 Haulers Intercepted . | . . . Recyclers Shooed 1 | . 1 . Parts Field Recycled . | . . . Retrieved Matter . | . . . Parts Self-Destructed . | . . . Prevented . | . . . Kills | -11 -10 -9 ------- Run | Jun Mat Mat Combat Hostiles Destroyed 21 | . 9 12 Guns 17 | . 9 8 AOE 4 | . . 4 Classes Destroyed 5 | . 2 3 Watcher 2 | . . 2 Swarmer 10 | . 6 4 Grunt 9 | . 3 6 Duelist 1 | . . 1 Sentry 1 | . . 1 Best Kill Streak 4 | . 3 4 Combat Bots Only 4 | . 3 4 Max Kills in Single Turn 4 | . 1 4 Gunslinging . | . . . Exploded 4 | . . 4 Melee . | . . . Uniques/NPCs Destroyed . | . . . Combat | -11 -10 -9 -------- Run | Jun Mat Mat Damage Taken 1545 | . 276 1269 Core 482 | . 75 407 Absorbed by Shields . | . . . Core Remaining (%) 85 | 100 70 . Volleys Fired 63 | . 23 40 Largest 2 | . 2 2 Hottest 90 | . 40 90 Shots Fired 116 | . 46 70 Gun 116 | . 46 70 Cannon . | . . . Launcher . | . . . Special . | . . . Kinetic 108 | . 46 62 Thermal . | . . . Explosive . | . . . Electromagnetic 8 | . . 8 Robot Hit Streak 11 | . 11 6 Robot Miss Streak 6 | . 6 2 Penetration Max . | . . . Secondary Targets 1 | . . 1 Max Gunslinging Chain 1 | . . 1 Shots Hit Robots 70 | . 26 44 Core Hits 36 | . 15 21 Critical Kills 1 | . 1 . Critical Parts Destroyed . | . . . Critical Strikes 1 | . 1 . Destroy 1 | . 1 . Melee Attacks . | . . . Impact . | . . . Slashing . | . . . Piercing . | . . . Sneak Attacks . | . . . Combat Hostiles . | . . . Follow-up Attacks . | . . . Damage Inflicted 1189 | . 337 852 Guns 879 | . 337 542 Cannons . | . . . Explosions 310 | . . 310 Melee . | . . . Ramming . | . . . Kinetic 787 | . 337 450 Thermal 75 | . . 75 Explosive 235 | . . 235 Electromagnetic 92 | . . 92 Impact . | . . . Slashing . | . . . Piercing . | . . . Highest Corruption . | . . . Average Corruption . | . . . Corruption Purged . | . . . Corruption Blocked . | . . . Overload Shots . | . . . Overflow Damage 25 | . . 25 Projectiles . | . . . Explosions 25 | . . 25 Melee . | . . . Knockbacks . | . . . Impact . | . . . Kinetic . | . . . Secondary . | . . . Self-Inflicted Damage 116 | . . 116 Shots 2 | . . 2 Rammed . | . . . Targets Rammed . | . . . Kicked . | . . . Crushed . | . . . Highest Temperature 20 | . 20 18 Average Temperature 7 | . 6 8 Received Heat Transfer 528 | . 129 399 Siege Activations . | . . . Robots Corrupted . | . . . Combat Hostiles . | . . . Parts Fried . | . . . Impact Corruptions . | . . . Robots Melted . | . . . Combat Hostiles . | . . . Parts Melted . | . . . Heat Transferred 100 | . . 100 Parts Sabotaged . | . . . Parts Stolen . | . . . Parts Stripped . | . . . Power Chain Reactions 1 | . . 1 Missiles Intercepted . | . . . Alert | -11 -10 -9 ------- Run | Jun Mat Mat Peak Influence 512 | . 161 512 Initial 50 | . . 50 Average 128 | . 59 263 Maximum Alert Level 2 | . . 2 Low Security (%) 80 | 100 100 44 Level 1 7 | . . 21 Level 2 12 | . . 33 Level 3 . | . . . Level 4 . | . . . Level 5 . | . . . High Security . | . . . Max Security . | . . . Squads Dispatched 4 | . 1 3 Investigation . | . . . Extermination . | . . . Reinforcement 4 | . 1 3 Assault . | . . . Garrison . | . . . Intercept . | . . . Searches Triggered . | . . . Construction Impeded . | . . . Haulers Reinforced . | . . . Active Scanning Responses . | . . . Cargo Convoy Interrupts . | . . . Stealth | -11 -10 -9 --------- Run | Jun Mat Mat Distress Signals 1 | . . 1 Communications Jammed . | . . . Distress Signals . | . . . Times Spotted 43 | . 18 25 Peak Tracking Total 8 | . 5 8 Tactical Retreats 6 | . 2 4 Traps | -11 -10 -9 ------- Run | Jun Mat Mat Traps Triggered . | . . . Indirectly . | . . . Trap Hack Attempts . | . . . Triggered . | . . . Disarmed . | . . . Reprogrammed . | . . . Reused . | . . . Traps Extracted . | . . . Installed . | . . . Triggered . | . . . Machines | -11 -10 -9 ---------- Run | Jun Mat Mat Machines Disabled 1 | . . 1 Max in Single Turn 1 | . . 1 Machines Repaired . | . . . Machines Sabotaged . | . . . Overloaded Fab Kills . | . . . Hacking | -11 -10 -9 --------- Run | Jun Mat Mat Machines Accessed 3 | . 3 . Terminals 3 | . 3 . Fabricators . | . . . Repair Stations . | . . . Recycling Units . | . . . Scanalyzers . | . . . Garrison Access . | . . . Total Hacks 4 | . 4 . Successful 3 | . 3 . Failed 1 | . 1 . Catastrophic . | . . . Database Lockouts . | . . . Manual . | . . . Terminals 4 | . 4 . Fabricators . | . . . Repair Stations . | . . . Recycling Units . | . . . Scanalyzers . | . . . Garrison Access . | . . . Terminal Hacks 3 | . 3 . Locate Traps 3 | . 3 . Fabricator Hacks . | . . . Repair Station Hacks . | . . . Recycling Unit Hacks . | . . . Scanalyzer . | . . . Garrison Access Hacks . | . . . Unauthorized Hacks . | . . . Terminals . | . . . Fabricators . | . . . Repair Stations . | . . . Recycling Units . | . . . Scanalyzers . | . . . Garrison Access . | . . . Data Cores Recovered . | . . . Used . | . . . Hacking Detections 1 | . 1 . Full Trace Events . | . . . Feedback Events . | . . . Feedback Blocked . | . . . Robot Schematics Acquired . | . . . Robots Built . | . . . Authchips . | . . . Time . | . . . Total Robot Build Rating . | . . . Part Schematics Acquired . | . . . Parts Built . | . . . Authchips . | . . . Time . | . . . Total Part Build Rating . | . . . Parts Repaired . | . . . Time . | . . . Parts Recycled . | . . . Recycled Matter . | . . . Retrieved Matter . | . . . Retrieved Components . | . . . Parts Scanalyzed . | . . . Part Schematics Acquired . | . . . Parts Damaged . | . . . Bothacking | -11 -10 -9 ------------ Run | Jun Mat Mat Used RIF Installer . | . . . Robots Hacked . | . . . Non-combat . | . . . Combat . | . . . Robot Hacks Applied . | . . . Relay Couplers Released . | . . . Fabnet Peak Effective % . | . . . Robots Rewired . | . . . Allies Hacked . | . . . Hacks Repelled . | . . . Allies | -11 -10 -9 -------- Run | Jun Mat Mat Total Allies . | . . . Largest Group . | . . . Highest-Rated Group . | . . . Highest-Rated Ally . | . . . Total Orders . | . . . Ally Attacks . | . . . Total Damage . | . . . Kills . | . . . Allies Corrupted . | . . . Allies Melted . | . . . Intel | -11 -10 -9 ------- Run | Jun Mat Mat Robot Analysis Total . | . . . Derelict Logs Recovered . | . . . Drone Launches . | . . . Drone Recoveries . | . . . Exploration | -11 -10 -9 ------------- Run | Jun Mat Mat Turns Passed 1129 | 71 655 403 Spaces Moved 740 | 53 451 236 Core 129 | 4 . 125 Treads . | . . . Legs 609 | 49 451 109 Wheels . | . . . Hover . | . . . Flight 2 | . . 2 Fastest Speed 50 | 50 120 50 Average Speed 114 | 114 120 103 Slowest Speed 280 | 120 120 280 Overloaded Moves . | . . . Propulsion Burnouts . | . . . Robots Hopped . | . . . Cave-ins Triggered . | . . . Exploration Rate (%) 29 | 4 63 22 Regions Visited 2 Branch Regions . Pre-discovered Areas . | . . . Known Exits Taken . | . . . Unknown Exits Taken 2 | 1 1 . Scrap Searched . | . . . Spaces Dug . | . . . Terrain Destroyed 22 | . . 22 Melee . | . . . Projectile . | . . . AOE 22 | . . 22 Terrain Rammed . | . . . Walls Destroyed . | . . . Machines Disabled . | . . . Actions | -11 -10 -9 --------- Run | Jun Mat Mat Total 903 | 60 518 325 Wait 59 | . 37 22 Move 738 | 52 450 236 Hop . | . . . Pick Up 10 | 2 4 4 Fast Attach 12 | 6 1 5 Attach 12 | . 1 11 Detach 6 | . 1 5 Swap 1 | . 1 . Drop 2 | . . 2 Fire 63 | . 23 40 Melee . | . . . Ram . | . . . Kick . | . . . Crush . | . . . Escape Stasis . | . . . Rewire . | . . . Trap . | . . . Miscellaneous . | . . . Route ------- -11/Junkyard -10/Materials (discovered 3 exits: [*Mat x2] / [*Min]) -9/Materials (discovered 1 exit: [*Mat]) History --------- Turn | Location | Event 8 | -11/Junkyard | Discovered new exit (range 15) 72 | -11/Junkyard | Entered Materials 206 | -10/Materials | Discovered new exit (range 15) 310 | -10/Materials | Build established: Mutant 552 | -10/Materials | Discovered new exit (range 15) 708 | -10/Materials | Discovered new exit (range 10) 727 | -10/Materials | Entered another Materials area 727 | -9/Materials | Evolved 2 slots: Propulsion x2 902 | -9/Materials | Discovered new exit (range 12) 991 | -9/Materials | Core integrity fell below 50% 1003 | -9/Materials | Core integrity fell below 20% 1021 | -9/Materials | Lost 9 parts (1p4n1u3w) 1102 | -9/Materials | Lost 3 parts (1n2w) 1130 | -9/Materials | Destroyed by Y-45 Defender with Heavy Assault Rifle Last Messages --------------- 01040_ W-16 Scout sends out distress signal. 01042_ W-16 Scout destroyed. 01045_ G-34 Mercenary destroyed. 01055_ R-06 Scavenger collects Corrupted Aluminum Leg. 01055_ Acquired Hvy. Ion Engine. 01061_ R-06 Scavenger collects Hover Unit. 01062_ Acquired Flight Unit. 01065_ R-06 Scavenger collects Lgt. Ion Engine. 01067_ Flight Unit destroyed. 01068_ R-06 Scavenger collects Visual Processing Unit. 01070_ EM Shotgun destroyed. 01071_ Dropped Hvy. Ion Engine. 01086_ T-07 Excavator is excavating. 01092_ Acquired Prototype Energy Gun. 01093_ T-07 Excavator is excavating. 01094_ Acquired Prototype Energy Gun. 01098_ T-07 Excavator is excavating. 01114_ Identified Imp. EM Shotgun. 01119_ G-34 Mercenary destroyed. 01119_ Door malfunctions. Map ----- +----------------------------------------------------+ | ???????# #????? | | ???????# #????? | | ???????# #??### | | ???????##### ####+####### | | ???????????# ## % # | | ???????????# ## # | | ???????????# ## # | | ???????????# ## % # | | ???????????# ## + | | ???????????# ## * * # | | ??????#????# ## #[ | | ??????# ??# ## #[[ | | ??????# "# ############[[ | | ??????# + #??????????# | | ????? # # #??????????# | | ????? # ??# #??????????# | | #???? #????# #??????????### | | # """ #????# #?????????#### | | # """ #+#??# #?????????? | | # # #??# #???????????"" | | # """ # #### #???????????"" | | # """ + ! #???????????"" | | # """ # #?????????? | | # # +?????????#### | | # # [[ #????????????? | | # @[ # [[ #????????????? | | ?###Y## #????????????? | | ???#% # #?????????? | | ???# #?????????? | | ???# """ # #?????????? | | ???# """ ###??????????? | | ???# """ ??????????? | | ???# ????????? | | ???# ??????? | | ???# ##+###??????? | | ???# ###"T"####???????????? | | ???# #??"""#??????????????? | | ???####??####??????????????? | | ???????????????????????????? | | ???????????????????????????? | | ???????????????????????????? | | ???????????????????????????? | | ???????????????????????????? | | ???????????????????????????? | | ???????????????????????????? | | ???????????????????????????? | | ???????????????????????????? | | ???????????????????????????? | | | | | +----------------------------------------------------+ Best States ------------- Heat Dissipation 38 Energy Generation 14 Energy Capacity 280 Matter Stores 231 Matter Capacity 300 Sight Range 16 Terrain Scan Density 10 Evasion (%) 55 Item Schematics ----------------- None Robot Schematics ------------------ None Fabricated ------------ Nothing Alien Tech Used ----------------- None Achievements -------------- None Challenges ------------ None Game ------ Seed MappingRefineryCompressor Manual? 0 Play Time 00:12:18 Cumulative 6.9 hours Start 2023.11.19 @ 11:05:33 End 2023.11.19 @ 11:17:28 Sessions 1 Manual Loads 0 Difficulty Rogue Special Mode None Game No. 20 Rogue 20 Adventurer 0 Explorer 0 Win Type - Total 0 Types 0/0/0/0/0/0/0/0/0 Lore% 6 Gallery% 13 Achievement% 11 Wizard Run 0 Options --------- ASCII 0 Keyboard 0 Movement Vi Keybinds 0 Fullscreen 1 Font 18/X11Bold Map View 76x50 Tactical HUD 1 Map Filters NONE Filters NONE Steam 1 RUN: b043ff06-6689-4935-a445-feb2925d47b1